bitfinex/quotes_ETHUSD_20250415
["timestamp","ask_amount","ask_price","bid_price","bid_amount"]
[1744722774654,12.16931,1643.5,1643.2,6.63558]
[1744722774836,12.16931,1643.5,1643.2,8.1149569]
[1744722775240,6.08519,1643.4,1643.1,8.158189]
[1744722775448,6.0855,1643.3,1643.1,0.7773]
[1744722775757,12.17109,1643.3,1643.1,0.7773]
[1744722776660,6.0855,1643.3,1643.2,0.23969699]
[1744722777161,6.0855,1643.3,1643.1,0.7773]
[1744722777527,12.17012,1643.4,1643.2,0.23968387]
[1744722777733,6.08502,1643.4,1643.2,0.23968387]
[1744722777927,6.08531,1643.3,1643.2,0.23968387]
[1744722778447,12.16936,1643.5,1643.2,6.32534387]
[1744722778625,12.16936,1643.5,1643.2,7.64419626]
[1744722779262,6.08422,1643.6,1643.2,7.64417626]
[1744722779470,12.16871,1643.6,1643.3,6.08522]
[1744722779763,12.16871,1643.6,1643.4,0.23956007]
[1744722780061,6.08457,1643.5,1643.4,0.23956007]
[1744722780482,6.08457,1643.5,1643.2,6.08564]
[1744722780648,6.08457,1643.5,1643.4,0.24323457]
[1744722780848,12.16937,1643.5,1643.3,0.24330303]
[1744722781185,12.16937,1643.5,1643.4,0.24323457]
[1744722781393,11.41894,1643.7,1643.4,7.11105457]
[1744722781680,11.41895,1643.7,1643.4,12.95283]
[1744722781831,11.41895,1643.7,1643.4,14.248113]
[1744722782033,5.335,1643.7,1643.5,6.32763058]
[1744722782333,6.08386,1643.7,1643.5,0.24310058]
[1744722782531,6.08431,1643.6,1643.2,6.08544]
[1744722782768,6.08431,1643.6,1643.4,0.782]
[1744722782769,12.16886,1643.6,1643.4,0.782]
[1744722783193,6.08457,1643.5,1643.3,1.3611]
[1744722783369,6.08457,1643.5,1643.3,2.160769]
[1744722784096,12.16931,1643.5,1643.3,2.160769]
[1744722784250,6.08457,1643.5,1643.3,2.160769]
[1744722784580,12.16873,1643.6,1643.3,8.245989]
[1744722784782,6.0843,1643.6,1643.3,8.245989]
[1744722784967,6.0843,1643.6,1643.3,8.245959]
[1744722785171,6.0843,1643.6,1643.3,14.331169]
[1744722785391,6.08392,1643.7,1643.4,6.08476]
[1744722785584,6.0842,1643.6,1643.3,14.331179]
[1744722785879,6.08422,1643.6,1643.3,8.245929]
[1744722786195,12.16808,1643.7,1643.3,8.245929]
[1744722786491,6.0842,1643.6,1643.3,8.245929]
[1744722786680,12.1686,1643.6,1643.3,8.245929]
[1744722786886,6.08459,1643.5,1643.3,2.160769]
[1744722787063,6.0842,1643.6,1643.3,8.245959]
[1744722787252,6.0842,1643.6,1643.3,14.331169]
[1744722787453,6.0842,1643.6,1643.3,14.331179]
[1744722787657,6.08391,1643.7,1643.4,6.08491]
[1744722787901,6.81258,1643.8,1643.5,6.08422]
[1744722788053,12.1678,1643.7,1643.4,7.5178569]
[1744722788253,6.08384,1643.7,1643.4,7.5178569]
[1744722788497,12.89621,1643.8,1643.5,6.08457]
[1744722788969,12.84982546,1643.9,1643.4,1.4330869]
[1744722789200,12.84982546,1643.9,1643.4,6.08484]
[1744722789201,6.08395,1643.7,1643.4,6.08484]
[1744722789374,12.16796,1643.7,1643.4,6.08484]
[1744722789697,12.16796,1643.7,1643.3,8.245979]
[1744722789698,6.08446,1643.6,1643.3,8.245979]
[1744722790062,6.08446,1643.6,1643.3,2.160769]
[1744722790255,6.08446,1643.6,1643.3,1.3611]
[1744722790497,6.08462,1643.5,1643.3,1.3611]
[1744722791004,12.16891,1643.6,1643.3,7.44639]
[1744722791302,12.16891,1643.6,1643.4,0.24082353]
[1744722792115,6.08457,1643.5,1643.4,0.24082353]
[1744722792260,6.08457,1643.5,1643.1,6.08593]
[1744722792261,6.085,1643.4,1643.1,12.98626]
[1744722792461,7.05600215,1643.7,1643.2,0.24131379]
[1744722792764,6.08434,1643.6,1643.3,6.0853]
[1744722793063,0.729,1643.7,1643.2,6.32693379]
[1744722793263,12.16959,1643.5,1643.3,0.57757874]
[1744722794103,6.08477,1643.5,1643.3,0.57757874]
[1744722794407,12.16959,1643.5,1643.3,0.24117466]
[1744722794611,6.08477,1643.5,1643.3,0.24117466]
[1744722794961,12.16863,1643.6,1643.4,0.24110621]
[1744722795160,12.16863,1643.6,1643.2,6.08548]
[1744722795161,6.0846,1643.5,1643.2,6.08548]
[1744722795473,12.16932,1643.5,1643.3,0.24117466]
[1744722795680,12.16933,1643.5,1643.3,0.24117466]
[1744722796369,6.08494,1643.4,1643.3,0.24117466]
[1744722797213,6.08494,1643.4,1643.3,0.57757206]
[1744722799398,6.08494,1643.4,1643.3,0.24117466]
[1744722800007,12.16936,1643.5,1643.3,0.24117466]
[1744722800414,6.0846,1643.5,1643.3,0.24117466]
[1744722800713,12.16938,1643.5,1643.3,0.24117466]
[1744722801118,6.08429,1643.6,1643.4,0.7671]
[1744722801285,12.16868,1643.6,1643.5,0.24146188]
[1744722801617,6.08429,1643.6,1643.5,0.24146188]
[1744722802408,6.08457,1643.5,1643.4,0.7671]
[1744722802770,6.08457,1643.5,1643.4,1.00863032]
[1744722804707,6.08457,1643.5,1643.4,0.24153032]
[1744722805014,6.08526,1643.4,1643.2,0.7625]
[1744722805827,6.08581,1643.2,1643.1,0.7625]
[1744722806346,6.08581,1643.2,1643.1,1.00381967]
[1744722806544,6.08581,1643.2,1643.1,0.24131967]
[1744722806701,6.08646,1643.0,1642.8,0.8132]
[1744722806901,6.08642,1643.0,1642.6,0.8132]
[1744722807133,0.729,1643.1,1642.7,0.33679157]
[1744722807134,6.08731,1642.8,1642.7,0.33679157]
[1744722807300,12.17386,1642.9,1642.7,0.33679157]
[1744722807711,1.17826901,1643.1,1642.7,0.33679157]
[1744722807916,12.90162,1643.1,1642.7,6.42420157]
[1744722808122,0.729,1643.1,1642.8,6.08697]
[1744722808321,6.8154,1643.1,1642.7,6.08744]
[1744722808553,6.08643,1643.0,1642.6,6.90086]
[1744722808862,12.17385,1642.9,1642.6,9.36456821]
[1744722809061,6.0868,1642.9,1642.6,15.45236821]
[1744722809211,6.81523,1643.1,1642.8,6.08706]
[1744722809416,6.08683,1642.9,1642.7,0.55]
[1744722810364,6.08645,1643.0,1642.7,6.63753]
[1744722810527,6.08613,1643.1,1642.8,7.507573]
[1744722810728,6.08605,1643.1,1642.9,0.55]
[1744722811058,6.08645,1643.0,1642.8,0.7569]
[1744722811220,12.17314,1643.0,1642.8,0.7569]
[1744722811564,12.17307,1643.0,1642.8,0.7569]
[1744722811852,6.08679,1642.9,1642.8,0.7569]
[1744722812036,12.17385,1642.9,1642.6,9.30820821]
[1744722812242,6.08717,1642.8,1642.6,3.22040821]
[1744722812442,12.17453,1642.8,1642.6,0.7567]
[1744722812984,6.08753,1642.7,1642.5,5.871]
[1744722813113,6.08717,1642.8,1642.5,5.871]
[1744722813461,6.08717,1642.8,1642.5,18.04739]
[1744722813605,6.08717,1642.8,1642.5,12.72639]
[1744722813811,6.08717,1642.8,1642.5,14.14759046]
[1744722814312,6.08717,1642.8,1642.5,14.14752046]
[1744722814541,0.729,1643.0,1642.5,8.05935046]
[1744722814743,6.08756,1642.7,1642.5,0.55]
[1744722816339,6.08756,1642.7,1642.4,13.66265455]
[1744722816519,6.08756,1642.7,1642.4,7.57413455]
[1744722816725,6.08781,1642.7,1642.4,7.57413455]
[1744722817250,12.17567,1642.7,1642.4,7.57413455]
[1744722817412,12.17567,1642.7,1642.4,1.48561455]
[1744722817752,6.08828,1642.5,1642.3,1.3053]
[1744722818117,12.17599,1642.6,1642.3,7.39429]
[1744722818844,6.08832,1642.5,1642.3,1.3053]
[1744722819249,12.17756,1642.4,1642.1,6.0738]
[1744722819551,6.08908,1642.3,1642.1,0.7518]
[1744722819844,12.17846,1642.3,1642.0,0.7922]
[1744722820149,12.17846,1642.3,1642.0,6.88223]
[1744722820347,12.17251273,1642.3,1642.0,6.88223]
[1744722821454,6.08313273,1642.3,1642.1,0.24739885]
[1744722822623,6.051,1642.6,1642.1,1.56936374]
[1744722822946,5.322,1642.6,1642.4,6.08863]
[1744722823150,6.08829,1642.5,1642.2,6.92076]
[1744722824555,12.17672,1642.5,1642.2,6.92076]
[1744722826162,6.08829,1642.5,1642.2,13.01002]
[1744722827659,12.17678,1642.5,1642.2,6.92076]
[1744722827960,6.08876,1642.4,1642.2,2.132541]
[1744722828360,6.08829,1642.5,1642.2,8.221861]
[1744722828567,6.08829,1642.5,1642.2,14.311181]
[1744722828954,6.08829,1642.5,1642.2,8.221861]
[1744722829154,6.08829,1642.5,1642.2,14.311151]
[1744722829331,6.08829,1642.5,1642.2,14.311121]
[1744722829533,12.17688,1642.5,1642.2,8.221831]
[1744722830937,6.08865,1642.4,1642.2,2.132541]
[1744722831479,6.08829,1642.5,1642.2,8.221881]
[1744722831684,6.08878,1642.4,1642.0,7.40551]
[1744722831838,6.08902,1642.3,1642.0,13.49552]
[1744722832255,12.90678,1642.4,1642.0,13.49552]
[1744722832578,6.81777,1642.4,1642.1,6.08973]
[1744722832777,12.90663,1642.4,1642.1,6.08973]
[1744722833089,6.81777,1642.4,1642.1,7.439254]
[1744722833275,12.90586,1642.5,1642.2,6.08929]
[1744722833482,12.37800215,1642.6,1642.1,1.349524]
[1744722833684,6.089,1642.4,1642.1,1.349524]
[1744722833986,6.051,1642.6,1642.1,1.349524]
[1744722834289,6.08725,1642.8,1642.1,1.349524]
[1744722834290,6.08724,1642.8,1642.5,6.91722]
[1744722834505,6.053,1643.0,1642.5,6.91722]
[1744722834700,6.08777,1642.7,1642.5,0.8293]
[1744722834990,12.17548,1642.7,1642.4,6.08858]
[1744722835151,12.17548,1642.7,1642.5,0.608858]
[1744722835653,12.17547,1642.7,1642.5,0.608858]
[1744722835851,6.08881,1642.4,1642.2,0.8164]
[1744722836067,12.17781,1642.4,1642.0,13.00774]
[1744722836295,6.08881,1642.4,1642.3,0.25630878]
[1744722836498,12.17781,1642.4,1642.1,0.33603776]
[1744722836701,12.90681,1642.4,1642.3,0.25439572]
[1744722837000,6.81781,1642.4,1642.1,6.08974]
[1744722837153,6.81781,1642.4,1642.1,7.390476]
[1744722837355,6.81781,1642.4,1642.2,0.25446429]
[1744722837702,6.81781,1642.4,1642.1,7.390476]
[1744722837856,12.90663,1642.4,1642.3,0.25439572]
[1744722838359,6.81781,1642.4,1642.1,7.390456]
[1744722838559,6.81781,1642.4,1642.2,0.25446429]
[1744722838560,12.90662,1642.4,1642.2,0.25446429]
[1744722839006,12.90662,1642.4,1642.1,7.390456]
[1744722839172,12.90662,1642.4,1642.3,0.25439572]
[1744722839498,12.90662,1642.4,1642.1,7.390456]
[1744722839700,12.90662,1642.4,1642.3,0.25439572]
[1744722839884,12.90662,1642.4,1642.2,0.25443804]
[1744722840058,12.90662,1642.4,1642.3,0.25436947]
[1744722840403,6.81781,1642.4,1642.1,7.390456]
[1744722840561,12.17682,1642.5,1642.3,0.25436947]
[1744722840760,12.90582,1642.5,1642.3,0.25436947]
[1744722841691,12.90582,1642.5,1642.2,0.7390456]
[1744722842007,12.90582,1642.5,1642.3,0.25493556]
[1744722842203,6.08837,1642.5,1642.3,0.25493556]
[1744722842359,12.17701,1642.5,1642.3,0.25493556]
[1744722842555,11.41204,1642.6,1642.3,6.34394556]
[1744722843213,17.50012,1642.6,1642.3,6.34394556]
[1744722843369,17.50016,1642.6,1642.3,6.34394556]
[1744722843803,11.41204,1642.6,1642.3,6.34394556]
[1744722844003,11.41204,1642.6,1642.3,8.45225468]
[1744722844004,5.324,1642.6,1642.3,8.45225468]
[1744722844209,11.41202,1642.6,1642.3,8.45225468]
[1744722845673,6.08865,1642.4,1642.3,0.25493556]
[1744722846005,6.08865,1642.4,1642.1,6.08974]
[1744722846599,12.17749,1642.4,1642.2,0.25646353]
[1744722846783,12.17749,1642.4,1642.1,6.08974]
[1744722846985,12.17749,1642.4,1642.2,0.25646353]
[1744722847194,6.08902,1642.3,1642.0,13.01169]
[1744722847378,6.08902,1642.3,1642.1,0.25654523]
[1744722847976,6.08865,1642.4,1642.1,0.25654523]
[1744722847977,6.08865,1642.4,1642.1,6.34628523]
[1744722848177,0.729,1642.6,1642.1,6.34627523]
[1744722848376,0.729,1642.6,1642.2,6.63923]
[1744722848377,6.81723,1642.6,1642.2,6.63923]
[1744722848700,12.90549,1642.6,1642.3,0.593598]
[1744722849000,12.90549,1642.6,1642.3,2.7360078]
[1744722849505,6.81723,1642.6,1642.3,8.8249978]
[1744722849800,6.81581,1642.9,1642.6,6.08775]
[1744722850000,6.08741,1642.8,1642.5,6.89025]
[1744722850200,6.08741,1642.8,1642.7,0.25555034]
[1744722850400,6.08758,1642.7,1642.5,2.82130183]
[1744722850701,6.08731,1642.8,1642.6,0.25565817]
[1744722850904,6.08753,1642.7,1642.6,0.25565817]
[1744722852298,12.17525,1642.7,1642.4,6.0885]
[1744722852468,6.08753,1642.7,1642.6,0.25573685]
[1744722852669,12.17528,1642.7,1642.5,0.59284401]
[1744722852869,6.08753,1642.7,1642.6,0.25573685]
[1744722853809,6.08753,1642.7,1642.4,12.17702]
[1744722853997,6.08753,1642.7,1642.6,0.25573685]
[1744722854197,6.08753,1642.7,1642.4,13.60525298]
[1744722854510,6.08753,1642.7,1642.5,0.25580536]
[1744722854972,6.08726,1642.8,1642.5,0.25580536]
[1744722855174,6.08726,1642.8,1642.5,6.34395536]
[1744722855576,6.08726,1642.8,1642.5,7.73003319]
[1744722856031,12.17457,1642.8,1642.5,7.73003319]
[1744722856318,6.08766,1642.7,1642.5,1.64188319]
[1744722856624,6.08766,1642.7,1642.5,0.25580536]
[1744722858919,12.17477,1642.8,1642.5,6.34407536]
[1744722859424,6.08726,1642.8,1642.6,0.7699]
[1744722859831,6.08726,1642.8,1642.7,0.25381574]
[1744722860180,6.08726,1642.8,1642.6,0.7699]
[1744722860381,6.08726,1642.8,1642.7,0.25381574]
[1744722860598,12.17456,1642.8,1642.6,0.7699]
[1744722860825,12.17456,1642.8,1642.7,0.25381574]
[1744722861189,12.17456,1642.8,1642.4,12.94695]
[1744722861529,12.17456,1642.8,1642.5,0.25395275]
[1744722861697,6.08726,1642.8,1642.5,6.34218275]
[1744722862126,12.17456,1642.8,1642.5,6.34218275]
[1744722862721,6.08726,1642.8,1642.5,6.34218275]
[1744722862931,12.17456,1642.8,1642.5,6.34218275]
[1744722863236,6.08726,1642.8,1642.5,12.43034275]
[1744722863528,6.08726,1642.8,1642.5,7.80492862]
[1744722864277,12.17465,1642.8,1642.5,1.71676862]
[1744722864496,12.17465,1642.8,1642.5,0.25395275]
[1744722864921,6.08756,1642.7,1642.5,0.25395275]
[1744722867934,12.17522,1642.7,1642.5,0.25395275]
[1744722868233,12.17524,1642.7,1642.5,0.25395275]
[1744722868549,6.8169,1642.6,1642.5,0.25395275]
[1744722868696,13.14390215,1642.6,1642.0,6.89825]
[1744722868900,6.08925,1642.3,1642.0,6.89823]
[1744722869229,6.08925,1642.3,1642.1,0.25379343]
[1744722869430,6.08918,1642.3,1642.1,0.25379343]
[1744722869605,6.08918,1642.3,1642.2,0.3367913]
[1744722869807,6.08918,1642.3,1642.2,0.59071298]
[1744722870412,12.13902,1642.6,1642.2,1.36231298]
[1744722870667,12.17699,1642.5,1642.2,7.11485168]
[1744722871011,12.17753,1642.4,1642.2,1.02552168]
[1744722871207,12.17755,1642.4,1642.2,1.02552168]
[1744722872962,12.17752,1642.4,1642.2,1.02552168]
[1744722874068,6.08902,1642.3,1642.2,0.25392168]
[1744722874424,6.08951,1642.2,1641.9,11.81245]
[1744722874736,12.17904,1642.2,1641.9,6.49045]
[1744722875116,6.0898,1642.1,1641.9,0.4]
[1744722881361,12.17973,1642.1,1642.0,0.25709317]
[1744722881660,6.0898,1642.1,1642.0,0.25709317]
[1744722882360,12.90806,1642.2,1642.0,0.25709317]
[1744722882569,6.08949,1642.2,1642.0,0.25709317]
[1744722883769,12.17909,1642.2,1642.0,0.25709317]
[1744722884270,6.08949,1642.2,1642.0,0.25709317]
[1744722884456,12.1791,1642.2,1642.0,0.25709317]
[1744722884971,6.08949,1642.2,1642.0,0.25709317]
[1744722885271,6.08838,1642.5,1642.1,6.84698]
[1744722885473,6.08865,1642.4,1642.1,12.93674]
[1744722885771,6.08865,1642.4,1642.2,0.26126794]
[1744722885944,6.08865,1642.4,1642.1,6.84698]
[1744722886139,6.08865,1642.4,1642.2,0.2612417]
[1744722886345,6.08865,1642.4,1642.1,12.93664]
[1744722886571,6.08865,1642.4,1642.2,0.2612417]
[1744722886759,6.08865,1642.4,1642.1,14.36627653]
[1744722886931,6.08865,1642.4,1642.2,0.26128106]
[1744722887137,6.08865,1642.4,1642.1,14.36627653]
[1744722887374,6.08865,1642.4,1642.2,0.2613073]
[1744722887539,6.08865,1642.4,1642.1,14.36627653]
[1744722887738,6.08865,1642.4,1642.2,0.26129418]
[1744722887973,6.08865,1642.4,1642.1,14.36627653]
[1744722888179,6.08865,1642.4,1642.2,0.26128106]
[1744722888340,6.08865,1642.4,1642.1,14.36627653]
[1744722888540,6.08865,1642.4,1642.2,0.26128106]
[1744722888741,6.08865,1642.4,1642.1,14.36627653]
[1744722888966,6.08865,1642.4,1642.2,0.26129418]
[1744722889165,6.08865,1642.4,1642.1,14.36627653]
[1744722889337,6.08865,1642.4,1642.2,0.26129418]
[1744722889546,12.17746,1642.4,1642.1,8.27661653]
[1744722889787,12.17746,1642.4,1642.2,0.26128106]
[1744722890085,12.17746,1642.4,1642.1,6.84698]
[1744722890280,12.17746,1642.4,1642.3,0.26121252]
[1744722890486,12.17746,1642.4,1642.2,0.26128106]
[1744722890647,12.17746,1642.4,1642.3,0.26092138]
[1744722891081,12.17746,1642.4,1642.1,0.7574]
[1744722891284,12.17746,1642.4,1642.3,0.26092138]
[1744722891587,12.17746,1642.4,1642.3,0.26094762]
[1744722891754,12.17746,1642.4,1642.1,6.84711]
[1744722891953,12.17746,1642.4,1642.2,0.26101616]
[1744722892183,12.17746,1642.4,1642.1,6.84711]
[1744722892386,6.08902,1642.3,1642.2,0.26101616]
[1744722892686,6.08902,1642.3,1642.1,0.7574]
[1744722892855,12.17766,1642.4,1642.2,0.26100304]
[1744722893057,6.08865,1642.4,1642.2,0.26100304]
[1744722893257,12.17744,1642.4,1642.1,6.84704]
[1744722893482,12.17744,1642.4,1642.3,0.26093451]
[1744722893682,12.17744,1642.4,1642.2,0.26100304]
[1744722893879,12.17744,1642.4,1642.3,0.26093451]
[1744722894255,12.17744,1642.4,1642.1,0.7574]
[1744722894453,12.17744,1642.4,1642.3,0.26093451]
[1744722894656,12.17744,1642.4,1642.2,0.26100304]
[1744722894857,12.17744,1642.4,1642.3,0.26093451]
[1744722895578,6.08903,1642.3,1642.1,0.7574]
[1744722895757,6.08903,1642.3,1642.2,0.26100304]
[1744722895956,6.08903,1642.3,1642.1,0.7574]
[1744722896157,6.08903,1642.3,1642.2,0.26100304]
[1744722896353,6.08903,1642.3,1642.1,0.7574]
[1744722896550,6.08903,1642.3,1642.2,0.26100304]
[1744722896792,6.08903,1642.3,1642.1,0.7574]
[1744722896959,6.08903,1642.3,1642.2,0.25780307]
[1744722897160,6.08903,1642.3,1642.1,2.051144]
[1744722897360,6.08903,1642.3,1642.2,0.25780307]
[1744722897688,6.08903,1642.3,1642.1,0.7574]
[1744722897887,6.08903,1642.3,1642.2,0.25780307]
[1744722898204,6.08903,1642.3,1642.1,0.7574]
[1744722898395,6.08903,1642.3,1642.2,0.25780307]
[1744722898571,6.08952,1642.2,1641.9,7.31768]
[1744722898894,6.08952,1642.2,1642.0,0.59521326]
[1744722899462,6.8178,1642.4,1642.1,6.4269731]
[1744722899789,12.90677,1642.4,1642.2,0.2582277]
[1744722899982,6.08939,1642.2,1642.1,0.3372731]
[1744722900293,6.08939,1642.2,1642.1,0.25829625]
[1744722900878,6.08902,1642.3,1642.1,0.25829625]
[1744722901058,6.08939,1642.2,1642.1,0.25829625]
[1744722901259,6.08902,1642.3,1642.1,0.25829625]
[1744722901461,6.08902,1642.3,1642.0,12.18014]
[1744722901659,6.08902,1642.3,1642.2,0.2582277]
[1744722901889,20.44132,1642.4,1642.1,6.68517239]
[1744722902105,6.08902,1642.3,1642.2,0.2582277]
[1744722902619,14.35261,1642.4,1642.3,6.08902]
[1744722902922,14.35261,1642.4,1642.3,8.02636531]
[1744722903142,14.35261,1642.4,1642.3,3.40782284]
[1744722903419,15.08161,1642.4,1642.3,0.59544531]
[1744722903592,20.44126,1642.4,1642.3,0.25815917]
[1744722903793,20.44126,1642.4,1642.1,6.6397]
[1744722904102,20.44126,1642.4,1642.2,0.25756732]
[1744722904481,14.35261,1642.4,1642.1,6.0897]
[1744722904680,14.35261,1642.4,1642.3,0.25749878]
[1744722904881,20.44146,1642.4,1642.2,0.25716899]
[1744722905081,20.44146,1642.4,1642.3,0.25708732]
[1744722905310,14.35261,1642.4,1642.3,0.25708732]
[1744722905519,14.35261,1642.4,1642.2,6.08906]
[1744722905684,14.35261,1642.4,1642.3,0.25748566]
[1744722906403,14.35261,1642.4,1642.3,6.34650566]
[1744722906806,14.35261,1642.4,1642.3,8.21736223]
[1744722907007,14.35261,1642.4,1642.3,8.5544354]
[1744722909113,14.35261,1642.4,1642.3,9.3101354]
[1744722909318,5.322,1642.9,1642.8,6.08716]
[1744722909531,5.322,1642.9,1642.7,6.08735]
[1744722909823,0.729,1643.0,1642.8,0.2564462]
[1744722910026,0.729,1643.0,1642.6,6.84355]
[1744722910226,0.729,1643.0,1642.7,0.25654095]
[1744722910433,6.08689,1642.9,1642.6,14.224514]
[1744722910598,6.08689,1642.9,1642.7,0.25652783]
[1744722910913,6.08689,1642.9,1642.6,14.224514]
[1744722911219,6.08689,1642.9,1642.7,0.25652783]
[1744722911418,6.08689,1642.9,1642.7,1.44810418]
[1744722911618,12.90207,1643.0,1642.8,0.2564462]
[1744722912015,6.81551,1643.0,1642.8,0.2564462]
[1744722912216,59.6238,1643.2,1642.9,6.08654]
[1744722912415,59.6238,1643.2,1643.0,0.25377543]
[1744722912416,53.538,1643.2,1643.0,0.25377543]
[1744722912721,5.319,1643.2,1643.0,6.08617]
[1744722912902,5.319,1643.2,1643.1,0.2536231]
[1744722913228,12.89936,1643.4,1643.1,0.2536231]
[1744722913418,6.08534,1643.3,1643.1,0.2536231]
[1744722914913,6.81395,1643.4,1643.1,0.2536231]
[1744722915101,12.89906,1643.4,1643.1,0.2536231]
[1744722915721,6.81395,1643.4,1643.1,6.3395931]
[1744722916084,6.08568,1643.2,1643.1,0.2536231]
[1744722916506,6.08568,1643.2,1642.8,6.88103]
[1744722916507,6.08609,1643.1,1642.8,6.88103]
[1744722916913,6.08609,1643.1,1642.8,12.96809]
[1744722917114,12.17171,1643.2,1642.8,12.96809]
[1744722917315,6.08568,1643.2,1642.8,12.96809]
[1744722917505,6.08607,1643.1,1642.8,12.96808]
[1744722917714,12.17171,1643.2,1642.8,12.96808]
[1744722918015,6.08568,1643.2,1642.9,6.08675]
[1744722918419,12.41240215,1643.3,1642.8,8.37764842]
[1744722918420,6.32700215,1643.3,1642.8,8.37764842]
[1744722918618,6.0866,1643.0,1642.7,1.3414]
[1744722918906,6.08753,1642.7,1642.4,0.7914]
[1744722919128,12.17537,1642.7,1642.4,0.7914]
[1744722919641,6.08753,1642.7,1642.4,0.7914]
[1744722919798,6.08725,1642.8,1642.5,6.08815]
[1744722919996,6.08725,1642.8,1642.5,6.08814]
[1744722920197,6.08725,1642.8,1642.5,6.08826]
[1744722920443,6.08725,1642.8,1642.5,12.1764]
[1744722920780,6.08725,1642.8,1642.5,7.38492]
[1744722920898,6.08688,1642.9,1642.5,7.38492]
[1744722921099,6.08679,1642.9,1642.5,1.29678]
[1744722921300,6.0878,1642.7,1642.4,0.7914]
[1744722921495,6.0878,1642.7,1642.4,6.88003]
[1744722921843,12.1755,1642.7,1642.4,6.88003]
[1744722922002,6.08801,1642.6,1642.2,6.88147]
[1744722922431,12.17612,1642.6,1642.3,6.089]
[1744722922636,12.17628,1642.6,1642.2,12.97075]
[1744722922834,6.08806,1642.6,1642.3,7.385995]
[1744722923134,6.08792,1642.6,1642.3,7.385955]
[1744722923431,6.08764,1642.7,1642.4,6.91522]
[1744722923606,6.08764,1642.7,1642.4,0.8266]
[1744722923806,6.08791,1642.6,1642.4,0.8266]
[1744722924135,12.17614,1642.6,1642.3,2.094375]
[1744722924308,6.08837,1642.5,1642.3,2.094375]
[1744722924726,6.08837,1642.5,1642.3,1.297075]
[1744722924916,6.08876,1642.4,1642.1,7.43688]
[1744722925418,6.08964,1642.2,1641.9,1.1973]
[1744722925735,12.17986,1642.1,1641.9,1.1973]
[1744722925939,12.17986,1642.1,1641.9,0.4]
[1744722925940,6.09013,1642.0,1641.9,0.4]
[1744722926554,6.09013,1642.0,1641.9,0.56795588]
[1744722926856,6.08939,1642.2,1641.9,0.56795588]
[1744722927053,6.08997,1642.1,1641.9,0.56795588]
[1744722927211,12.17991,1642.1,1641.9,1.28882947]
[1744722927415,12.17991,1642.1,1641.9,0.56795588]
[1744722927616,6.08994,1642.1,1641.9,0.56795588]
[1744722927816,6.08943,1642.2,1641.9,6.65844588]
[1744722928012,11.40711,1642.3,1642.0,6.91883]
[1744722928316,11.40711,1642.3,1642.1,0.16798934]
[1744722928552,6.0895,1642.2,1642.1,0.16798934]
[1744722929957,7.51912462,1642.2,1642.1,0.16798934]
[1744722930120,6.8185,1642.2,1642.1,0.16798934]
[1744722930451,6.8185,1642.2,1641.9,0.4]
[1744722930452,6.0898,1642.1,1641.9,0.4]
[1744722930845,6.09013,1642.0,1641.9,0.4]
[1744722931619,13.14613215,1642.0,1641.9,0.4]
[1744722933477,16.14613215,1642.0,1641.9,0.4]
[1744722934638,16.14613215,1642.0,1641.9,1e-05]
[1744722935068,22.96458488,1642.0,1641.9,1e-05]
[1744722936254,22.96458488,1642.0,1641.1,0.05]
[1744722936255,6.0931,1641.2,1641.1,0.05]
[1744722936456,6.0931,1641.2,1641.1,0.42240756]
[1744722937236,9.0931,1641.2,1641.1,0.42240756]
[1744722937481,7.28244123,1641.2,1641.1,0.05]
[1744722937769,11.4129,1641.3,1641.1,0.05]
[1744722937943,5.32,1641.3,1641.1,0.05]
[1744722938287,13.14910215,1641.2,1641.1,0.05]
[1744722939641,13.14910215,1641.2,1640.3,6.85933]
[1744722939642,0.729,1640.8,1640.3,6.85933]
[1744722939844,6.09413,1641.0,1640.5,12.19097]
[1744722939845,5.325,1640.9,1640.5,12.19097]
[1744722940053,5.325,1640.9,1640.4,0.55]
[1744722940248,11.4194,1640.9,1640.6,6.09528]
[1744722940485,11.4194,1640.9,1640.4,12.19187]
[1744722940486,0.729,1640.7,1640.4,12.19187]
[1744722940690,5.325,1640.9,1640.5,0.55]
[1744722940691,0.729,1640.9,1640.5,0.55]
[1744722940984,6.054,1641.1,1640.7,0.83]
[1744722941276,6.09482,1640.8,1640.5,6.09557]
[1744722941485,12.18965,1640.8,1640.4,12.74204]
[1744722941685,6.0951,1640.7,1640.4,6.6459]
[1744722941990,6.0951,1640.7,1640.4,6.646]
[1744722942337,6.0951,1640.7,1640.4,6.64593]
[1744722943158,6.0947,1640.8,1640.4,12.74184]
[1744722943356,0.729,1641.1,1640.9,6.09418]
[1744722943569,6.09366,1641.1,1640.8,0.8246]
[1744722944033,6.09395,1641.0,1640.8,0.8246]
[1744722944455,11.41917,1641.2,1640.8,6.91905]
[1744722944765,17.51246,1641.2,1640.8,6.91905]
[1744722945138,11.41917,1641.2,1640.8,6.91903]
[1744722945374,5.326,1641.2,1640.9,12.18827]
[1744722945535,5.326,1641.2,1641.0,6.09382]
[1744722945737,11.41983,1641.3,1641.0,6.09382]
[1744722946145,6.0931,1641.2,1640.9,6.09416]
[1744722946403,6.09322,1641.2,1640.9,6.09407]
[1744722946601,12.18653,1641.2,1640.9,6.09407]
[1744722946762,6.09355,1641.1,1640.8,1.516503]
[1744722946963,6.09389,1641.0,1640.8,0.8246]
[1744722947168,6.09389,1641.0,1640.7,0.55]
[1744722947699,6.09421,1640.9,1640.7,0.55]
[1744722947869,12.18791,1641.0,1640.7,0.55]
[1744722949203,6.09435,1640.9,1640.6,6.9209]
[1744722949700,12.1879,1641.0,1640.6,13.01609]
[1744722951211,6.09422,1640.9,1640.6,6.92079]